[Event "*** Titled Tuesday Blitz"]
[Site "Chess.com"]
[Date "2018.09.04"]
[Round "1"]
[White "narutosmith"]
[Black "LawrenceTrent"]
[Result "0-1"]
[WhiteElo "2200"]
[BlackElo "2541"]
[TimeControl "180+2"]
[EndTime "13:43:12 PDT"]
[Termination "LawrenceTrent won by resignation"]

1. e4 {[%clk 0:03:00]} 1... e5 {[%clk 0:02:59.9]} 2. Nf3 {[%clk 0:03:00.8]} 2...
Nc6 {[%clk 0:03:00.8]} 3. Bb5 {[%clk 0:03:01.4]} 3... a6 {[%clk 0:03:00.3]} 4.
Ba4 {[%clk 0:03:01.7]} 4... Nf6 {[%clk 0:03:00.8]} 5. d3 {[%clk 0:03:02.7]} 5...
d6 {[%clk 0:02:58.2]} 6. c4 {[%clk 0:03:03]} 6... g6 {[%clk 0:02:55.1]} 7. Nc3
{[%clk 0:03:03.8]} 7... Bg7 {[%clk 0:02:56.2]} 8. h3 {[%clk 0:03:05]} 8... O-O
{[%clk 0:02:56.9]} 9. Be3 {[%clk 0:03:06.3]} 9... h6 {[%clk 0:02:52.6]} 10. O-O
{[%clk 0:02:58.4]} 10... Nh5 {[%clk 0:02:50.5]} 11. d4 {[%clk 0:02:58.6]} 11...
exd4 {[%clk 0:02:49]} 12. Nxd4 {[%clk 0:02:59.5]} 12... Nxd4 {[%clk 0:02:45]}
13. Bxd4 {[%clk 0:03:00.3]} 13... Nf4 {[%clk 0:02:44.7]} 14. Bxg7 {[%clk
0:02:50.3]} 14... Kxg7 {[%clk 0:02:46.6]} 15. Nd5 {[%clk 0:02:46.7]} 15... Qg5
{[%clk 0:02:39.9]} 16. Qd4+ {[%clk 0:02:40.1]} 16... f6 {[%clk 0:02:39.5]} 17.
Nxf4 {[%clk 0:02:39.2]} 17... Qxf4 {[%clk 0:02:40.5]} 18. Rfe1 {[%clk
0:02:31.4]} 18... Be6 {[%clk 0:02:36.7]} 19. Rad1 {[%clk 0:02:23.8]} 19... Qe5
{[%clk 0:02:30.1]} 20. a3 {[%clk 0:02:05.9]} 20... Rfd8 {[%clk 0:02:26.2]} 21.
Bc2 {[%clk 0:01:52.4]} 21... Kf7 {[%clk 0:02:10.3]} 22. b3 {[%clk 0:01:50.3]}
22... a5 {[%clk 0:02:07.4]} 23. Rd2 {[%clk 0:01:27.8]} 23... Qxd4 {[%clk
0:01:48.5]} 24. Rxd4 {[%clk 0:01:28.4]} 24... g5 {[%clk 0:01:47.6]} 25. Kh2
{[%clk 0:01:23.5]} 25... Ra6 {[%clk 0:01:42.8]} 26. c5 {[%clk 0:01:11.7]} 26...
Ke7 {[%clk 0:01:25.9]} 27. Red1 {[%clk 0:01:12]} 27... Rd7 {[%clk 0:01:25.4]}
28. cxd6+ {[%clk 0:01:07.8]} 28... Raxd6 {[%clk 0:01:25.9]} 29. Rxd6 {[%clk
0:01:03.7]} 29... Rxd6 {[%clk 0:01:27.8]} 30. Rxd6 {[%clk 0:01:03.7]} 30... Kxd6
{[%clk 0:01:27.9]} 31. Kg3 {[%clk 0:01:04.7]} 31... Ke5 {[%clk 0:01:27.6]} 32.
Kf3 {[%clk 0:01:01.9]} 32... Kd4 {[%clk 0:01:28.4]} 33. Kg3 {[%clk 0:00:36.7]}
33... Kc3 {[%clk 0:01:28.8]} 34. Bd1 {[%clk 0:00:35]} 34... Bxb3 {[%clk
0:01:29.3]} 35. Bxb3 {[%clk 0:00:31.8]} 35... Kxb3 {[%clk 0:01:30]} 36. f4
{[%clk 0:00:33.2]} 36... gxf4+ {[%clk 0:01:24.6]} 37. Kxf4 {[%clk 0:00:34]}
37... c5 {[%clk 0:01:26]} 38. Kf5 {[%clk 0:00:33.9]} 38... c4 {[%clk 0:01:27.1]}
39. Kxf6 {[%clk 0:00:35.4]} 39... c3 {[%clk 0:01:28.3]} 40. e5 {[%clk
0:00:37.3]} 40... c2 {[%clk 0:01:29.6]} 41. e6 {[%clk 0:00:39.2]} 41... c1=Q
{[%clk 0:01:30.9]} 42. e7 {[%clk 0:00:40.6]} 42... Qf4+ {[%clk 0:01:27.5]} 43.
Ke6 {[%clk 0:00:39.5]} 43... Qe4+ {[%clk 0:01:28.2]} 44. Kd7 {[%clk 0:00:40.1]}
44... Qd5+ {[%clk 0:01:29]} 45. Kc8 {[%clk 0:00:38.8]} 45... Qe6+ {[%clk
0:01:29.9]} 46. Kd8 {[%clk 0:00:39.6]} 46... Qd6+ {[%clk 0:01:31]} 47. Ke8
{[%clk 0:00:40.2]} 47... Kxa3 {[%clk 0:01:32]} 48. Kf7 {[%clk 0:00:41]} 48...
Qd7 {[%clk 0:01:32.3]} 49. g4 {[%clk 0:00:39.5]} 49... b5 {[%clk 0:01:32.6]} 50.
h4 {[%clk 0:00:39.8]} 50... b4 {[%clk 0:01:33.7]} 51. g5 {[%clk 0:00:40.3]}
51... hxg5 {[%clk 0:01:34.7]} 52. hxg5 {[%clk 0:00:41.2]} 52... Qf5+ {[%clk
0:01:35.5]} 53. Kg8 {[%clk 0:00:35.2]} 53... Qxg5+ {[%clk 0:01:34.1]} 54. Kf8
{[%clk 0:00:37.1]} 54... Qxe7+ {[%clk 0:01:33.8]} 55. Kxe7 {[%clk 0:00:37.7]}
55... b3 {[%clk 0:01:35.7]} 0-1

[Event "*** Titled Tuesday Blitz"]
[Site "Chess.com"]
[Date "2018.09.04"]
[Round "1"]
[White "MITerryble"]
[Black "dimke2802"]
[Result "1-0"]
[WhiteElo "2771"]
[BlackElo "2413"]
[TimeControl "180+2"]
[EndTime "13:43:13 PDT"]
[Termination "MITerryble won by checkmate"]

1. e4 {[%clk 0:03:00.7]} 1... c5 {[%clk 0:02:59.2]} 2. Nf3 {[%clk 0:03:01.4]}
2... d6 {[%clk 0:02:55]} 3. Bb5+ {[%clk 0:03:01.9]} 3... Bd7 {[%clk 0:02:55.3]}
4. Bxd7+ {[%clk 0:03:02.8]} 4... Qxd7 {[%clk 0:02:57.2]} 5. O-O {[%clk
0:03:04.1]} 5... Nf6 {[%clk 0:02:58.5]} 6. Re1 {[%clk 0:03:05.2]} 6... Nc6
{[%clk 0:02:59.7]} 7. c3 {[%clk 0:03:06.6]} 7... e6 {[%clk 0:03:00.8]} 8. d4
{[%clk 0:03:07.7]} 8... cxd4 {[%clk 0:03:02.7]} 9. cxd4 {[%clk 0:03:08.9]} 9...
d5 {[%clk 0:03:04]} 10. e5 {[%clk 0:03:09.9]} 10... Ne4 {[%clk 0:03:05.1]} 11.
a3 {[%clk 0:03:11.4]} 11... Be7 {[%clk 0:03:05.2]} 12. Qd3 {[%clk 0:03:12.4]}
12... O-O {[%clk 0:03:01.8]} 13. Nbd2 {[%clk 0:03:13.4]} 13... Nxd2 {[%clk
0:03:01.6]} 14. Bxd2 {[%clk 0:03:15.1]} 14... f6 {[%clk 0:02:56.4]} 15. exf6
{[%clk 0:03:15.2]} 15... Rxf6 {[%clk 0:02:57.1]} 16. Re2 {[%clk 0:03:07.1]}
16... Bd6 {[%clk 0:02:50.8]} 17. Rae1 {[%clk 0:03:06.1]} 17... h6 {[%clk
0:02:44.9]} 18. b4 {[%clk 0:03:02.7]} 18... a6 {[%clk 0:02:39]} 19. Nh4 {[%clk
0:02:42.1]} 19... Qf7 {[%clk 0:02:32.3]} 20. g3 {[%clk 0:02:18.4]} 20... Re8
{[%clk 0:01:33.7]} 21. f4 {[%clk 0:02:18.8]} 21... Qc7 {[%clk 0:01:34.4]} 22.
Nf3 {[%clk 0:02:09.1]} 22... Qd7 {[%clk 0:01:29.9]} 23. Kg2 {[%clk 0:02:07.4]}
23... Ne7 {[%clk 0:01:30.5]} 24. Nh4 {[%clk 0:01:56.2]} 24... Nc6 {[%clk
0:01:24.2]} 25. Bc3 {[%clk 0:01:50.8]} 25... Rc8 {[%clk 0:01:20.2]} 26. Bb2
{[%clk 0:01:49.4]} 26... Ne7 {[%clk 0:01:20.4]} 27. Re3 {[%clk 0:01:44.3]} 27...
Bb8 {[%clk 0:01:15.1]} 28. R1e2 {[%clk 0:01:41.6]} 28... Rc4 {[%clk 0:01:15.4]}
29. Qd1 {[%clk 0:01:41.7]} 29... Nc6 {[%clk 0:01:14.6]} 30. Qe1 {[%clk
0:01:40.3]} 30... Kf7 {[%clk 0:01:08.7]} 31. Nf3 {[%clk 0:01:40.8]} 31... Ba7
{[%clk 0:01:07.4]} 32. Rd3 {[%clk 0:01:34]} 32... Kg8 {[%clk 0:01:06.8]} 33. Qd1
{[%clk 0:01:20.7]} 33... b5 {[%clk 0:00:52.1]} 34. Rde3 {[%clk 0:01:21.5]} 34...
Bb8 {[%clk 0:00:49]} 35. Qd3 {[%clk 0:01:21.4]} 35... Nd8 {[%clk 0:00:35.4]} 36.
Qd1 {[%clk 0:01:07.1]} 36... Rf7 {[%clk 0:00:35.7]} 37. Qb1 {[%clk 0:01:05.9]}
37... Qc6 {[%clk 0:00:32.7]} 38. Nh4 {[%clk 0:00:57.6]} 38... Rc7 {[%clk
0:00:29]} 39. Ng6 {[%clk 0:00:55.9]} 39... Rd7 {[%clk 0:00:19.4]} 40. Qd3 {[%clk
0:00:56]} 40... Bc7 {[%clk 0:00:19.8]} 41. f5 {[%clk 0:00:57.1]} 41... exf5
{[%clk 0:00:19.8]} 42. Qxf5 {[%clk 0:00:58.9]} 42... Rf7 {[%clk 0:00:15.1]} 43.
Re8+ {[%clk 0:00:59.6]} 43... Kh7 {[%clk 0:00:16.1]} 44. Rh8# {[%clk 0:01:00.3]}
1-0

[Event "*** Titled Tuesday Blitz"]
[Site "Chess.com"]
[Date "2018.09.04"]
[Round "1"]
[White "Bryakin_Mikhail"]
[Black "tsakos2731"]
[Result "0-1"]
[WhiteElo "2522"]
[BlackElo "2483"]
[TimeControl "180+2"]
[EndTime "13:43:13 PDT"]
[Termination "tsakos2731 won by checkmate"]

1. d4 {[%clk 0:02:59]} 1... d5 {[%clk 0:03:00.6]} 2. Nf3 {[%clk 0:02:59.1]} 2...
e6 {[%clk 0:03:01.4]} 3. c4 {[%clk 0:03:00]} 3... a6 {[%clk 0:03:02]} 4. g3
{[%clk 0:02:51.2]} 4... dxc4 {[%clk 0:03:02.2]} 5. Bg2 {[%clk 0:02:50.9]} 5...
b5 {[%clk 0:03:02.3]} 6. Ne5 {[%clk 0:02:48.7]} 6... c6 {[%clk 0:03:00.2]} 7. b3
{[%clk 0:02:29.4]} 7... cxb3 {[%clk 0:02:57.7]} 8. axb3 {[%clk 0:02:24.2]} 8...
Bb7 {[%clk 0:02:58.8]} 9. O-O {[%clk 0:02:24]} 9... Nf6 {[%clk 0:02:59]} 10. Bb2
{[%clk 0:02:20]} 10... Be7 {[%clk 0:02:55]} 11. Nc3 {[%clk 0:02:12.9]} 11... O-O
{[%clk 0:02:51.3]} 12. e3 {[%clk 0:02:10.8]} 12... Nd5 {[%clk 0:02:42.9]} 13.
Nd3 {[%clk 0:02:05]} 13... Nd7 {[%clk 0:02:41.7]} 14. Ne4 {[%clk 0:02:03.2]}
14... a5 {[%clk 0:02:41.2]} 15. Nec5 {[%clk 0:02:00.6]} 15... Nxc5 {[%clk
0:02:39.3]} 16. Nxc5 {[%clk 0:02:02.5]} 16... Bxc5 {[%clk 0:02:40.3]} 17. dxc5
{[%clk 0:02:03.8]} 17... f6 {[%clk 0:02:41]} 18. Qg4 {[%clk 0:01:18.1]} 18...
Qe7 {[%clk 0:02:37.4]} 19. Rac1 {[%clk 0:01:16.8]} 19... a4 {[%clk 0:02:35.1]}
20. bxa4 {[%clk 0:00:42]} 20... Rxa4 {[%clk 0:02:34.4]} 21. Qh5 {[%clk
0:00:40.3]} 21... Rd8 {[%clk 0:02:31]} 22. Rfd1 {[%clk 0:00:38.7]} 22... Ra2
{[%clk 0:02:28.1]} 23. Ba1 {[%clk 0:00:32.9]} 23... e5 {[%clk 0:02:24.5]} 24. e4
{[%clk 0:00:23.3]} 24... Nb4 {[%clk 0:02:21.8]} 25. Bf1 {[%clk 0:00:15.8]} 25...
Rxd1 {[%clk 0:02:20]} 26. Rxd1 {[%clk 0:00:16.6]} 26... Nc2 {[%clk 0:02:18]} 27.
Bc3 {[%clk 0:00:04.9]} 27... Nd4 {[%clk 0:02:17.5]} 28. Bxd4 {[%clk 0:00:05.7]}
28... exd4 {[%clk 0:02:17.3]} 29. Rxd4 {[%clk 0:00:07.6]} 29... Ra1 {[%clk
0:02:18.4]} 30. Kg2 {[%clk 0:00:08.2]} 30... Bc8 {[%clk 0:02:15.9]} 31. Bd3
{[%clk 0:00:05.7]} 31... g6 {[%clk 0:02:14.7]} 32. Qh6 {[%clk 0:00:05]} 32...
Ra4 {[%clk 0:02:13.2]} 33. Rd6 {[%clk 0:00:05.5]} 33... Rxe4 {[%clk 0:01:45.6]}
34. Bxe4 {[%clk 0:00:05.2]} 34... Qxe4+ {[%clk 0:01:46.8]} 35. Kg1 {[%clk
0:00:06.4]} 35... Qb1+ {[%clk 0:01:44.6]} 36. Kg2 {[%clk 0:00:07.8]} 36... Qe4+
{[%clk 0:01:43.9]} 37. Kg1 {[%clk 0:00:09.1]} 37... Qb1+ {[%clk 0:01:42.3]} 38.
Kg2 {[%clk 0:00:10.3]} 38... Qe4+ {[%clk 0:01:42]} 39. Kf1 {[%clk 0:00:11.5]}
39... Qh1+ {[%clk 0:01:39.4]} 40. Ke2 {[%clk 0:00:09.4]} 40... Bg4+ {[%clk
0:01:38.8]} 41. Kd2 {[%clk 0:00:08.6]} 41... Qd1+ {[%clk 0:01:37.2]} 42. Kc3
{[%clk 0:00:09.9]} 42... Qa1+ {[%clk 0:01:35.2]} 43. Kd3 {[%clk 0:00:06.1]}
43... Qb1+ {[%clk 0:01:34.5]} 44. Kd2 {[%clk 0:00:04]} 44... Qb2+ {[%clk
0:01:35.4]} 45. Kd3 {[%clk 0:00:03.9]} 45... Bf5+ {[%clk 0:01:26.2]} 46. Ke3
{[%clk 0:00:05]} 46... Qc1+ {[%clk 0:01:26.3]} 47. Rd2 {[%clk 0:00:06.3]} 47...
Qe1+ {[%clk 0:01:22.2]} 48. Kd4 {[%clk 0:00:05.9]} 48... Qe5# {[%clk 0:01:20.3]}
0-1

[Event "*** Titled Tuesday Blitz"]
[Site "Chess.com"]
[Date "2018.09.04"]
[Round "1"]
[White "MaxLeto"]
[Black "Arash_Tahbaz"]
[Result "0-1"]
[WhiteElo "2370"]
[BlackElo "2719"]
[TimeControl "180+2"]
[EndTime "13:43:24 PDT"]
[Termination "Arash_Tahbaz won by resignation"]

1. d4 {[%clk 0:02:49.2]} 1... Nf6 {[%clk 0:02:59.2]} 2. Bf4 {[%clk 0:02:50.4]}
2... g6 {[%clk 0:03:00.2]} 3. e3 {[%clk 0:02:51.7]} 3... Bg7 {[%clk 0:03:01]} 4.
h3 {[%clk 0:02:50.3]} 4... O-O {[%clk 0:03:02.2]} 5. Nf3 {[%clk 0:02:51.7]} 5...
d6 {[%clk 0:03:02.9]} 6. Be2 {[%clk 0:02:51.9]} 6... Nbd7 {[%clk 0:03:01.8]} 7.
O-O {[%clk 0:02:50.9]} 7... b6 {[%clk 0:03:02.1]} 8. c4 {[%clk 0:02:50.5]} 8...
Bb7 {[%clk 0:03:02.8]} 9. Nc3 {[%clk 0:02:52]} 9... Ne4 {[%clk 0:03:04]} 10.
Nxe4 {[%clk 0:02:42.4]} 10... Bxe4 {[%clk 0:03:05.9]} 11. Nd2 {[%clk 0:02:44]}
11... Bb7 {[%clk 0:03:04.2]} 12. Bh2 {[%clk 0:02:40.6]} 12... c5 {[%clk
0:03:00.1]} 13. Nf3 {[%clk 0:02:36.4]} 13... Nf6 {[%clk 0:02:56.8]} 14. d5
{[%clk 0:02:34.1]} 14... b5 {[%clk 0:02:55.2]} 15. Rc1 {[%clk 0:02:29.3]} 15...
Qb6 {[%clk 0:02:48.6]} 16. b3 {[%clk 0:02:20.1]} 16... b4 {[%clk 0:02:44.7]} 17.
Bd3 {[%clk 0:02:16.7]} 17... e5 {[%clk 0:02:36.6]} 18. dxe6 {[%clk 0:01:44.8]}
18... fxe6 {[%clk 0:02:36.6]} 19. Ng5 {[%clk 0:01:46.2]} 19... Rae8 {[%clk
0:02:28.4]} 20. Qc2 {[%clk 0:01:43.3]} 20... Qc6 {[%clk 0:02:24.8]} 21. Nf3
{[%clk 0:01:11.7]} 21... Nd7 {[%clk 0:02:11.7]} 22. Be2 {[%clk 0:01:06.1]} 22...
Ne5 {[%clk 0:02:05.7]} 23. Bxe5 {[%clk 0:01:05.8]} 23... Bxe5 {[%clk 0:02:04.4]}
24. Rcd1 {[%clk 0:01:03.4]} 24... Bg7 {[%clk 0:02:01.7]} 25. Rd2 {[%clk
0:01:01.2]} 25... Bc3 {[%clk 0:01:56.8]} 26. Rd3 {[%clk 0:00:59.3]} 26... Qc7
{[%clk 0:01:57.1]} 27. Nd2 {[%clk 0:00:53.1]} 27... e5 {[%clk 0:01:47.1]} 28. e4
{[%clk 0:00:42.6]} 28... Bd4 {[%clk 0:01:45.3]} 29. Bg4 {[%clk 0:00:40.6]} 29...
Rf4 {[%clk 0:01:46.2]} 30. Rf3 {[%clk 0:00:36.3]} 30... Ref8 {[%clk 0:01:45.7]}
31. g3 {[%clk 0:00:32.9]} 31... Rxf3 {[%clk 0:01:34.7]} 32. Bxf3 {[%clk
0:00:34.8]} 32... Kg7 {[%clk 0:01:34.5]} 33. Kg2 {[%clk 0:00:36.2]} 33... Qe7
{[%clk 0:01:32.4]} 34. h4 {[%clk 0:00:36.4]} 34... Qf6 {[%clk 0:01:30.5]} 35.
Bg4 {[%clk 0:00:34.5]} 35... h5 {[%clk 0:01:26.4]} 36. Bh3 {[%clk 0:00:33.5]}
36... g5 {[%clk 0:01:20]} 37. hxg5 {[%clk 0:00:33.4]} 37... Qxg5 {[%clk
0:01:21.9]} 38. Nf3 {[%clk 0:00:32.7]} 38... Qg6 {[%clk 0:01:20]} 39. Re1 {[%clk
0:00:29.3]} 39... a5 {[%clk 0:01:15.1]} 40. Re2 {[%clk 0:00:29.5]} 40... Bc6
{[%clk 0:01:15.6]} 41. Nh4 {[%clk 0:00:29.9]} 41... Rxf2+ {[%clk 0:01:05]} 42.
Rxf2 {[%clk 0:00:19.4]} 42... Bxe4+ {[%clk 0:01:06.2]} 43. Rf3 {[%clk
0:00:06.5]} 43... Bxf3+ {[%clk 0:01:01.8]} 0-1

[Event "*** Titled Tuesday Blitz"]
[Site "Chess.com"]
[Date "2018.09.04"]
[Round "1"]
[White "Vamostodorecto"]
[Black "platy3"]
[Result "0-1"]
[WhiteElo "2402"]
[BlackElo "2752"]
[TimeControl "180+2"]
[EndTime "13:43:25 PDT"]
[Termination "platy3 won by resignation"]

1. d4 {[%clk 0:03:00.1]} 1... Nf6 {[%clk 0:02:58.6]} 2. c4 {[%clk 0:03:00.9]}
2... g6 {[%clk 0:02:59.7]} 3. Nc3 {[%clk 0:03:01.8]} 3... Bg7 {[%clk 0:03:01.1]}
4. e4 {[%clk 0:03:02.2]} 4... d6 {[%clk 0:03:02.7]} 5. Be2 {[%clk 0:03:03.7]}
5... O-O {[%clk 0:03:04.1]} 6. Nf3 {[%clk 0:03:05.2]} 6... e5 {[%clk 0:03:04.6]}
7. O-O {[%clk 0:03:06.1]} 7... Nc6 {[%clk 0:03:02.1]} 8. d5 {[%clk 0:03:05.6]}
8... Ne7 {[%clk 0:03:03.3]} 9. Ne1 {[%clk 0:02:57.7]} 9... Nd7 {[%clk
0:03:03.5]} 10. Be3 {[%clk 0:02:57.9]} 10... f5 {[%clk 0:03:04.2]} 11. f3 {[%clk
0:02:59.5]} 11... f4 {[%clk 0:03:05.4]} 12. Bf2 {[%clk 0:03:01]} 12... g5 {[%clk
0:03:06.9]} 13. Rc1 {[%clk 0:03:01.9]} 13... Rf6 {[%clk 0:03:08]} 14. c5 {[%clk
0:03:01.4]} 14... Nxc5 {[%clk 0:03:05.6]} 15. b4 {[%clk 0:03:01.6]} 15... Na6
{[%clk 0:03:05.5]} 16. Nb5 {[%clk 0:03:03.1]} 16... Rh6 {[%clk 0:02:57.6]} 17.
Kh1 {[%clk 0:02:02.1]} 17... c6 {[%clk 0:02:43.7]} 18. dxc6 {[%clk 0:01:57]}
18... bxc6 {[%clk 0:02:43.5]} 19. Nxa7 {[%clk 0:01:51.4]} 19... Bb7 {[%clk
0:02:28.8]} 20. b5 {[%clk 0:01:44.2]} 20... cxb5 {[%clk 0:02:21.9]} 21. Nxb5
{[%clk 0:01:46.1]} 21... d5 {[%clk 0:02:19.3]} 22. Qb3 {[%clk 0:01:27.1]} 22...
Rb8 {[%clk 0:02:02.4]} 23. a4 {[%clk 0:01:18.2]} 23... Kh8 {[%clk 0:02:02.6]}
24. exd5 {[%clk 0:01:18.3]} 24... Bxd5 {[%clk 0:02:02.2]} 25. Bc4 {[%clk
0:01:16.8]} 25... Nc7 {[%clk 0:01:53.1]} 26. Bxd5 {[%clk 0:01:09.3]} 26... Nxb5
{[%clk 0:01:42.3]} 27. axb5 {[%clk 0:01:06.8]} 27... Qxd5 {[%clk 0:01:43.3]} 28.
Qxd5 {[%clk 0:01:04.9]} 28... Nxd5 {[%clk 0:01:45.2]} 29. Nd3 {[%clk 0:00:51.5]}
29... Re6 {[%clk 0:01:26.5]} 30. Ba7 {[%clk 0:00:46.5]} 30... Rd8 {[%clk
0:01:13.2]} 31. Nc5 {[%clk 0:00:44.7]} 31... Re7 {[%clk 0:01:00.8]} 32. b6
{[%clk 0:00:44.7]} 32... e4 {[%clk 0:00:58]} 33. fxe4 {[%clk 0:00:42.7]} 33...
Ne3 {[%clk 0:00:59.2]} 34. b7 {[%clk 0:00:43.1]} 34... Nxf1 {[%clk 0:00:56.5]}
35. Rxf1 {[%clk 0:00:43.5]} 35... Be5 {[%clk 0:00:52.3]} 36. Rb1 {[%clk
0:00:37.9]} 36... Bb8 {[%clk 0:00:51.3]} 37. Bb6 {[%clk 0:00:34.8]} 37... Rd6
{[%clk 0:00:47.6]} 38. h3 {[%clk 0:00:21.3]} 38... Kg8 {[%clk 0:00:45.7]} 39.
Na6 {[%clk 0:00:20.6]} 39... Rxb7 {[%clk 0:00:45.5]} 40. Nxb8 {[%clk 0:00:15.1]}
40... Rxb8 {[%clk 0:00:45.5]} 0-1

[Event "*** Titled Tuesday Blitz"]
[Site "Chess.com"]
[Date "2018.09.04"]
[Round "1"]
[White "Jbd735"]
[Black "gmjlh"]
[Result "0-1"]
[WhiteElo "2356"]
[BlackElo "2708"]
[TimeControl "180+2"]
[EndTime "13:43:26 PDT"]
[Termination "gmjlh won on time"]

1. e4 {[%clk 0:02:59.1]} 1... c6 {[%clk 0:03:00.7]} 2. d4 {[%clk 0:02:59]} 2...
d5 {[%clk 0:03:02.6]} 3. Nc3 {[%clk 0:02:59.1]} 3... dxe4 {[%clk 0:03:03.4]} 4.
Nxe4 {[%clk 0:03:00]} 4... Nf6 {[%clk 0:03:04.9]} 5. Nxf6+ {[%clk 0:02:59.7]}
5... exf6 {[%clk 0:03:05.6]} 6. c3 {[%clk 0:02:58.9]} 6... Bd6 {[%clk
0:03:06.3]} 7. Bd3 {[%clk 0:02:56.6]} 7... O-O {[%clk 0:03:06.1]} 8. Qc2 {[%clk
0:02:51.6]} 8... Re8+ {[%clk 0:03:06.2]} 9. Ne2 {[%clk 0:02:52.2]} 9... h5
{[%clk 0:03:06.6]} 10. Be3 {[%clk 0:02:31.7]} 10... Nd7 {[%clk 0:03:06.4]} 11.
O-O-O {[%clk 0:02:31.3]} 11... Nf8 {[%clk 0:03:05.3]} 12. h3 {[%clk 0:02:17.4]}
12... h4 {[%clk 0:03:02.3]} 13. Rdg1 {[%clk 0:02:10.1]} 13... Be6 {[%clk
0:02:49.8]} 14. Kb1 {[%clk 0:01:54.8]} 14... b5 {[%clk 0:02:47.1]} 15. g3 {[%clk
0:01:53.1]} 15... Bd5 {[%clk 0:02:47.4]} 16. gxh4 {[%clk 0:01:39]} 16... Ng6
{[%clk 0:02:27.1]} 17. h5 {[%clk 0:01:25.7]} 17... Nh4 {[%clk 0:02:27.4]} 18.
Bh6 {[%clk 0:01:09.3]} 18... Bg2 {[%clk 0:00:55.9]} 19. Bxg7 {[%clk 0:00:35.1]}
19... Kxg7 {[%clk 0:00:57.8]} 20. Be4 {[%clk 0:00:35.4]} 20... Kh8 {[%clk
0:00:47.1]} 21. Bxg2 {[%clk 0:00:35.5]} 21... Rc8 {[%clk 0:00:47.7]} 22. Be4
{[%clk 0:00:29.5]} 22... c5 {[%clk 0:00:43.6]} 23. Rg4 {[%clk 0:00:29.1]} 23...
f5 {[%clk 0:00:42.4]} 24. Bxf5 {[%clk 0:00:29.6]} 24... Rc7 {[%clk 0:00:25.2]}
25. Rhg1 {[%clk 0:00:23.7]} 25... Qf6 {[%clk 0:00:20.3]} 26. Bd3 {[%clk
0:00:14.9]} 26... cxd4 {[%clk 0:00:14.5]} 27. Bh7 {[%clk 0:00:14.6]} 27... Rcc8
{[%clk 0:00:15]} 28. Nxd4 {[%clk 0:00:13.5]} 28... b4 {[%clk 0:00:16.3]} 29. Bd3
{[%clk 0:00:07.3]} 29... bxc3 {[%clk 0:00:15.2]} 30. bxc3 {[%clk 0:00:08.2]}
30... Rc5 {[%clk 0:00:11.7]} 31. Bh7 {[%clk 0:00:06.2]} 31... Rb8+ {[%clk
0:00:11.1]} 32. Ka1 {[%clk 0:00:06.6]} 32... Rcc8 {[%clk 0:00:11.3]} 33. Be4
{[%clk 0:00:04]} 33... Be5 {[%clk 0:00:07.5]} 34. Qd2 {[%clk 0:00:03]} 34...
Rxc3 {[%clk 0:00:05]} 0-1

[Event "*** Titled Tuesday Blitz"]
[Site "Chess.com"]
[Date "2018.09.04"]
[Round "1"]
[White "QuintilianoR"]
[Black "OglazaOskar2005"]
[Result "0-1"]
[WhiteElo "2596"]
[BlackElo "2301"]
[TimeControl "180+2"]
[EndTime "13:43:28 PDT"]
[Termination "OglazaOskar2005 won by resignation"]

1. Nf3 {[%clk 0:03:00.7]} 1... Nf6 {[%clk 0:03:00.1]} 2. b3 {[%clk 0:03:02.6]}
2... g6 {[%clk 0:02:54.9]} 3. Bb2 {[%clk 0:03:02.3]} 3... Bg7 {[%clk 0:02:54.6]}
4. d4 {[%clk 0:03:03.8]} 4... O-O {[%clk 0:02:45.9]} 5. e3 {[%clk 0:03:04.6]}
5... d5 {[%clk 0:02:46.2]} 6. Nbd2 {[%clk 0:03:04.3]} 6... b6 {[%clk 0:02:47.2]}
7. c4 {[%clk 0:03:02.7]} 7... dxc4 {[%clk 0:02:26.4]} 8. Nxc4 {[%clk 0:03:01]}
8... Bb7 {[%clk 0:02:26]} 9. Be2 {[%clk 0:03:01.3]} 9... Nbd7 {[%clk 0:02:24.2]}
10. O-O {[%clk 0:02:59.6]} 10... c5 {[%clk 0:02:25.2]} 11. Qe1 {[%clk
0:02:36.7]} 11... Qc7 {[%clk 0:01:39.1]} 12. Rc1 {[%clk 0:02:35.5]} 12... Rac8
{[%clk 0:01:25.8]} 13. Qd2 {[%clk 0:02:25.1]} 13... Qb8 {[%clk 0:01:25.6]} 14.
Rfd1 {[%clk 0:02:25.4]} 14... Rfd8 {[%clk 0:01:23.9]} 15. Qe1 {[%clk 0:02:25.4]}
15... Qa8 {[%clk 0:01:23.1]} 16. Qf1 {[%clk 0:02:25.2]} 16... cxd4 {[%clk
0:01:14.9]} 17. Nxd4 {[%clk 0:02:19.7]} 17... Nc5 {[%clk 0:01:12.8]} 18. f3
{[%clk 0:02:18.2]} 18... Nd5 {[%clk 0:01:12.3]} 19. e4 {[%clk 0:02:10.8]} 19...
Nf4 {[%clk 0:01:10.6]} 20. g3 {[%clk 0:02:11.8]} 20... Nxe2+ {[%clk 0:01:10.4]}
21. Qxe2 {[%clk 0:02:13.7]} 21... Ba6 {[%clk 0:01:06.5]} 22. Ba1 {[%clk
0:01:55.2]} 22... e5 {[%clk 0:00:45.1]} 23. Nc2 {[%clk 0:01:53.8]} 23... Bxc4
{[%clk 0:00:46]} 24. bxc4 {[%clk 0:01:50.6]} 24... Ne6 {[%clk 0:00:45.1]} 25.
Ne3 {[%clk 0:01:48.1]} 25... Nd4 {[%clk 0:00:44.5]} 26. Bxd4 {[%clk 0:01:48.2]}
26... Rxd4 {[%clk 0:00:45.1]} 27. Nd5 {[%clk 0:01:49.8]} 27... Rc5 {[%clk
0:00:42.8]} 28. Rxd4 {[%clk 0:01:34.5]} 28... exd4 {[%clk 0:00:44.7]} 29. Qd2
{[%clk 0:01:33.9]} 29... Qe8 {[%clk 0:00:39.5]} 30. Kg2 {[%clk 0:01:32.5]} 30...
Qa4 {[%clk 0:00:35.7]} 31. Qf4 {[%clk 0:00:56.2]} 31... Qxa2+ {[%clk 0:00:35.7]}
32. Kh3 {[%clk 0:00:56.1]} 32... Qa4 {[%clk 0:00:29.6]} 33. Qb8+ {[%clk
0:00:47.7]} 33... Bf8 {[%clk 0:00:30]} 34. Nf6+ {[%clk 0:00:45.3]} 34... Kg7
{[%clk 0:00:31.2]} 35. Ne8+ {[%clk 0:00:46.3]} 35... Kg8 {[%clk 0:00:31.6]} 36.
Nf6+ {[%clk 0:00:47.4]} 36... Kg7 {[%clk 0:00:32.9]} 37. Nd5 {[%clk 0:00:48.4]}
37... Qd7+ {[%clk 0:00:33.1]} 38. Kg2 {[%clk 0:00:47.8]} 38... Bd6 {[%clk
0:00:34.4]} 39. Qg8+ {[%clk 0:00:42.3]} 39... Kxg8 {[%clk 0:00:34.3]} 40. Nf6+
{[%clk 0:00:44.2]} 40... Kg7 {[%clk 0:00:35.3]} 41. Nxd7 {[%clk 0:00:46.1]}
41... Rc7 {[%clk 0:00:35.8]} 42. Nb8 {[%clk 0:00:46.8]} 42... b5 {[%clk
0:00:37]} 43. Rd1 {[%clk 0:00:43.7]} 43... Rxc4 {[%clk 0:00:37.3]} 44. Nd7
{[%clk 0:00:44.9]} 44... b4 {[%clk 0:00:36]} 45. e5 {[%clk 0:00:44.5]} 45... Bc7
{[%clk 0:00:36.7]} 46. f4 {[%clk 0:00:43.8]} 46... a5 {[%clk 0:00:37.6]} 0-1